fUSD/lending_fUSD_20251210
["ID","MTS","AMOUNT","RATE_DAILY","PERIOD"]
[398155746,1765407039872,-150.0,0.00038381,7]
[398155748,1765407039882,-150.0,0.00038389,7]
[398155750,1765407039892,-217.0,0.00038415,7]
[398155752,1765407039901,-150.0,0.00038417,7]
[398155754,1765407039911,-150.0,0.00038417,7]
[398155756,1765407039921,-150.0,0.00038454,7]
[398155758,1765407039931,-150.0,0.00038454,7]
[398155760,1765407039941,-150.0,0.00038454,7]
[398155762,1765407039950,-217.0,0.00038467,2]
[398155764,1765407039960,-150.0,0.00038484,7]
[398155767,1765407039970,-150.0,0.00038495,7]
[398155769,1765407039979,-150.0,0.00038506,7]
[398155771,1765407039989,-150.0,0.00038519,7]
[398155773,1765407039999,-902.63533717,0.00038522,4]
[398155775,1765407040009,-150.0,0.00038532,7]
[398155777,1765407040018,-150.0,0.00038532,7]
[398155779,1765407040027,-300.0,0.00038554,2]
[398155781,1765407040036,-150.0,0.00038583,7]
[398155783,1765407040046,-150.0,0.00038583,7]
[398155785,1765407040055,-150.0,0.00038583,7]
[398155787,1765407040069,-150.0,0.00038632,7]
[398155791,1765407040080,-150.0,0.00038648,7]
[398155794,1765407040089,-150.0,0.00038677,7]
[398155797,1765407040099,-150.0,0.00038692,7]
[398155799,1765407040110,-500.0,0.000387,120]
[398155801,1765407040120,-500.0,0.000387,120]
[398155803,1765407040129,-500.0,0.000387,120]
[398155805,1765407040140,-500.0,0.000387,120]
[398155807,1765407040150,-500.0,0.000387,120]
[398155809,1765407040159,-150.0,0.00038713,7]
[398155811,1765407040168,-150.0,0.00038713,7]
[398155813,1765407040178,-150.0,0.00038713,7]
[398155815,1765407040188,-150.0,0.0003872,7]
[398155817,1765407040197,-150.0,0.00038757,7]
[398155820,1765407040211,-150.0,0.00038778,7]
[398155822,1765407040221,-300.0,0.00038799,10]
[398155824,1765407040230,-150.0,0.00038842,7]
[398155826,1765407040239,-150.0,0.00038842,7]
[398155828,1765407040248,-150.0,0.00038842,7]
[398155830,1765407040258,-150.0,0.00038853,7]
[398155832,1765407040267,-150.0,0.0003886,7]
[398155834,1765407040277,-150.0,0.00038883,7]
[398155836,1765407040287,-600.0,0.00038904,30]
[398155838,1765407040296,-150.0,0.00038907,7]
[398155840,1765407040306,-150.0,0.00038956,7]
[398155842,1765407040315,-150.0,0.00038972,7]
[398155844,1765407040325,-150.0,0.00038972,7]
[398155846,1765407040335,-150.0,0.00038972,7]
[398155848,1765407040345,-150.0,0.0003899,7]
[398155850,1765407040355,-150.0,0.0003899,7]
[398155852,1765407040364,-150.0,0.00039008,7]
[398155854,1765407040374,-150.0,0.00039013,7]
[398155856,1765407040384,-217.0,0.00039027,2]
[398155858,1765407040393,-150.0,0.00039036,7]
[398155860,1765407040405,-150.0,0.00039042,7]
[398155863,1765407040415,-217.0,0.00039086,120]
[398155865,1765407040424,-150.0,0.00039101,7]
[398155867,1765407040433,-150.0,0.00039101,7]
[398155869,1765407040443,-150.0,0.00039101,7]
[398155871,1765407040453,-150.0,0.00039134,7]
[398155873,1765407040463,-150.0,0.00039134,7]
[398155875,1765407040473,-150.0,0.00039166,7]
[398155877,1765407040482,-150.0,0.00039174,7]
[398155879,1765407040491,-150.0,0.00039193,7]
[398155881,1765407040501,-150.0,0.00039225,7]
[398155883,1765407040511,-150.0,0.00039231,7]
[398155885,1765407040520,-150.0,0.00039231,7]
[398155887,1765407040531,-150.0,0.00039231,7]
[398155889,1765407040540,-150.0,0.00039259,7]
[398155891,1765407040551,-150.0,0.00039295,7]
[398155893,1765407040561,-150.0,0.00039334,7]
[398155896,1765407040574,-150.0,0.00039334,7]
[398155898,1765407040585,-150.0,0.0003936,7]
[398155900,1765407040596,-150.0,0.0003936,7]
[398155902,1765407040606,-150.0,0.0003936,7]
[398155904,1765407040615,-7757.76620646,0.0003938,2]
[398155906,1765407040625,-150.0,0.00039384,7]
[398155908,1765407040634,-150.0,0.00039407,7]
[398155910,1765407040643,-150.0,0.00039425,7]
[398155912,1765407040652,-150.0,0.00039429,7]
[398155914,1765407040662,-600.0,0.00039452,30]
[398155916,1765407040671,-150.0,0.0003949,7]
[398155918,1765407040681,-150.0,0.0003949,7]
[398155920,1765407040691,-150.0,0.0003949,7]
[398155922,1765407040700,-150.0,0.00039495,7]
[398155924,1765407040711,-150.0,0.0003951,7]
[398155926,1765407040721,-150.0,0.00039554,7]
[398155928,1765407040731,-150.0,0.00039564,7]
[398155930,1765407040740,-150.0,0.00039564,7]
[398155932,1765407040750,-150.0,0.0003959,7]
[398155934,1765407040760,-150.0,0.00039619,7]
[398155947,1765407040934,-150.0,0.00039619,7]
[398155948,1765407040944,-150.0,0.00039619,7]
[398155949,1765407040954,-150.0,0.00039635,7]
[398155950,1765407040963,-150.0,0.00039655,7]
[398155951,1765407040973,-150.0,0.00039665,7]
[398155952,1765407040981,-150.0,0.00039684,7]
[398155953,1765407040991,-150.0,0.00039749,7]
[398155955,1765407041000,-150.0,0.00039749,7]
[398155956,1765407041009,-150.0,0.00039749,7]
[398155957,1765407041019,-150.0,0.00039761,7]
[398155959,1765407041028,-150.0,0.00039772,7]
[398155961,1765407041038,-150.0,0.00039813,7]
[398155963,1765407041048,-150.0,0.00039816,7]
[398155965,1765407041058,-10000.0,0.00039834,2]
[398155968,1765407041071,-217.0,0.00039874,120]
[398155969,1765407041080,-150.0,0.00039878,7]
[398155971,1765407041090,-150.0,0.00039878,7]
[398155974,1765407041100,-150.0,0.00039878,7]
[398155976,1765407041111,-150.0,0.00039886,7]
[398155978,1765407041123,-500.0,0.00039899,60]
[398155980,1765407041132,-22963.969818,0.000399,120]
[398155982,1765407041145,-1000.0,0.000399,2]
[398155984,1765407041154,-150.0,0.00039901,7]
[398155986,1765407041163,-311.1,0.00039923,2]
[398155988,1765407041173,-150.0,0.00039943,7]
[398155990,1765407041183,-150.0,0.00039955,7]
[398155992,1765407041192,-150.0,0.00039976,7]
[398155994,1765407041202,-500.0,0.00039999,60]
[398155996,1765407041211,-174.40418229,0.00039999,60]
[398155998,1765407041220,-600.0,0.0004,30]
[398156000,1765407041230,-86155.27491782,0.0004,3]
[398156001,1765407041239,-1010.25019853,0.0004,90]
[398156002,1765407041249,-150.0,0.00040008,7]
[398156004,1765407041260,-150.0,0.00040008,7]
[398156006,1765407041269,-150.0,0.00040008,7]
[398156008,1765407041278,-150.0,0.00040012,7]
[398156010,1765407041287,-217.0,0.00040033,2]
[398156012,1765407041296,-150.0,0.00040072,7]
[398156014,1765407041305,-222.21354269,0.00040089,2]
[398156016,1765407041316,-156.38024337,0.00040089,29]
[398156018,1765407041325,-150.0,0.00040137,7]
[398156020,1765407041335,-288.49817922,0.00040137,7]
[398156022,1765407041344,-232.17034156,0.00040137,7]
[398156024,1765407041354,-181.70194615,0.00040137,7]
[398156026,1765407041363,-206.16822147,0.00040137,7]
[398156028,1765407041372,-150.0,0.00040137,7]
[398156030,1765407041381,-150.0,0.00040137,7]
[398156032,1765407041390,-150.0,0.00040137,7]
[398156033,1765407041399,-150.0,0.00040137,7]
[398156035,1765407041409,-150.0,0.00040137,7]
[398156038,1765407041419,-150.0,0.00040137,7]
[398156039,1765407041428,-439.70110605,0.00040151,4]
[398156042,1765407041437,-150.85,0.00040151,2]
[398156044,1765407041447,-150.85,0.00040151,2]
[398156046,1765407041457,-150.85,0.00040151,2]
[398156048,1765407041466,-500.0,0.0004016,60]
[398156050,1765407041476,-500.0,0.0004016,60]
[398156052,1765407041485,-500.0,0.0004016,60]
[398156054,1765407041494,-133302.76770333,0.00040161,2]
[398156056,1765407041509,-1238.95791096,0.00040161,2]
[398156058,1765407041521,-9997.49999975,0.00040161,2]
[398156061,1765407041536,-821.29632175,0.00040161,2]
[398156063,1765407041547,-3636.82058928,0.00040161,2]
[398156065,1765407041558,-2663.17417803,0.00040161,2]
[398156067,1765407041570,-66272.95366473,0.00040161,2]
[398156070,1765407041580,-995.02582332,0.00040161,2]
[398156101,1765407041916,-1.7e-07,0.00040161,2]
[398156102,1765407041932,-49818.73396843,0.00040161,2]
[398156103,1765407041943,-386202.63787341,0.00040161,2]
[398156104,1765407041955,-105050.13196684,0.00040161,2]
[398156105,1765407041965,-289.64,0.00040189,120]
[398156106,1765407041975,-840.33,0.000402,30]
[398156107,1765407041984,-1317.3,0.00040237,120]
[398156108,1765407041995,-217.0,0.00040242,2]
[398156109,1765407042004,-61041.0,0.00040261,2]
[398156110,1765407042014,-650.0,0.00040293,120]
[398156111,1765407042023,-217.0,0.00040374,2]
[398156112,1765407042033,-381.80091066,0.00040435,7]
[398156113,1765407042043,-600.0,0.00040548,30]
[398156114,1765407042053,-156.38024336,0.00040588,30]
[398156115,1765407042068,-1345.7,0.00040718,7]
[398156116,1765407042077,-217.0,0.00040812,2]
[398156117,1765407042087,-150.85,0.0004089,2]
[398156118,1765407042096,-500.0,0.00040899,60]
[398156120,1765407042107,-30794.5827,0.000409,2]
[398156122,1765407042117,-1000.0,0.000409,2]
[398156124,1765407042127,-1345.7,0.00040944,7]
[398156126,1765407042136,-197.89720748,0.00040985,120]
[398156128,1765407042147,-150.85,0.0004099,2]
[398156130,1765407042156,-100000.0,0.00041,30]
[398156132,1765407042166,-156.38024336,0.00041087,30]
[398156134,1765407042176,-150.0,0.00041094,20]
[398156136,1765407042186,-500.0,0.00041094,60]
[398156138,1765407042195,-500.0,0.00041094,60]
[398156140,1765407042205,-500.0,0.00041095,60]
[398156142,1765407042215,-500.0,0.00041095,60]
[398156144,1765407042224,-500.0,0.00041095,60]
[398156146,1765407042234,-500.0,0.00041095,60]
[398156148,1765407042244,-500.0,0.00041095,60]
[398156149,1765407042253,-500.0,0.00041095,60]
[398156151,1765407042264,-500.0,0.00041095,60]
[398156153,1765407042274,-500.0,0.00041095,60]
[398156154,1765407042283,-501.32023941,0.00041095,60]
[398156156,1765407042293,-500.0,0.00041095,60]
[398156158,1765407042302,-500.0,0.00041095,60]
[398156160,1765407042311,-500.0,0.00041095,60]
[398156162,1765407042321,-500.0,0.00041095,60]
[398156164,1765407042330,-187.649736,0.00041095,60]
[398156166,1765407042340,-500.0,0.00041095,60]
[398156167,1765407042349,-187.649736,0.00041095,60]
[398156168,1765407042359,-187.649736,0.00041095,60]
[398156169,1765407042369,-500.0,0.00041095,60]
[398156170,1765407042378,-500.0,0.00041095,60]
[398156171,1765407042388,-500.0,0.00041095,60]
[398156172,1765407042397,-154.428635,0.00041095,60]
[398156173,1765407042407,-500.0,0.00041095,60]
[398156174,1765407042417,-500.0,0.00041095,60]
[398156175,1765407042427,-500.0,0.00041095,60]
[398156176,1765407042437,-500.0,0.00041095,60]
[398156177,1765407042446,-500.0,0.00041095,60]
[398156178,1765407042455,-487.025821,0.00041095,60]
[398156179,1765407042464,-487.025821,0.00041095,60]
[398156180,1765407042474,-487.025821,0.00041095,60]
[398156181,1765407042483,-500.0,0.00041095,60]
[398156182,1765407042492,-265.529334,0.00041095,60]
[398156183,1765407042501,-265.529334,0.00041095,60]
[398156184,1765407042514,-265.529334,0.00041095,60]
[398156185,1765407042523,-500.0,0.00041095,60]
[398156186,1765407042533,-500.0,0.00041095,60]
[398156187,1765407042542,-500.0,0.00041095,60]
[398156188,1765407042552,-500.0,0.00041095,60]
[398156189,1765407042561,-500.0,0.00041095,60]
[398156190,1765407042571,-500.0,0.00041095,60]
[398156191,1765407042580,-500.0,0.00041095,60]
[398156192,1765407042589,-500.0,0.00041095,60]
[398156193,1765407042599,-500.0,0.00041095,60]
[398156194,1765407042610,-500.0,0.00041095,60]
[398156195,1765407042620,-500.0,0.00041095,60]
[398156196,1765407042629,-509.03217173,0.00041095,60]
[398156197,1765407042638,-500.0,0.00041095,60]
[398156198,1765407042647,-502.37514081,0.00041095,60]
[398156199,1765407042656,-555.63353955,0.00041095,60]
[398156200,1765407042666,-500.0,0.00041095,60]
[398156201,1765407042675,-500.0,0.00041095,60]
[398156202,1765407042685,-500.0,0.00041095,60]
[398156203,1765407042694,-500.0,0.00041095,60]
[398156204,1765407042704,-500.62020539,0.00041095,60]
[398156205,1765407042713,-500.0,0.00041095,60]
[398156206,1765407042723,-500.0,0.00041095,60]
[398156207,1765407042732,-500.0,0.00041095,60]
[398156208,1765407042742,-500.0,0.00041095,60]
[398156209,1765407042751,-500.0,0.00041095,60]
[398156210,1765407042760,-500.0,0.00041095,60]
[398156211,1765407042769,-500.0,0.00041095,60]
[398156213,1765407042779,-500.0,0.00041095,60]
[398156216,1765407042789,-500.0,0.00041095,60]
[398156218,1765407042798,-500.0,0.00041095,60]
[398156219,1765407042807,-500.0,0.00041095,60]
[398156221,1765407042816,-502.62203842,0.00041095,60]
[398156224,1765407042825,-500.0,0.00041095,60]
[398156226,1765407042836,-500.0,0.00041095,60]
[398156227,1765407042846,-500.0,0.00041095,60]
[398156229,1765407042856,-500.0,0.00041095,60]
[398156230,1765407042866,-500.0,0.00041095,60]
[398156232,1765407042875,-500.0,0.00041095,60]
[398156233,1765407042884,-500.0,0.00041095,60]
[398156234,1765407042894,-500.0,0.00041095,60]
[398156235,1765407042903,-500.0,0.00041095,60]
[398156236,1765407042912,-500.0,0.00041095,60]
[398156238,1765407042921,-500.0,0.00041095,60]
[398156239,1765407042930,-500.0,0.00041095,60]
[398156240,1765407042939,-500.0,0.00041095,60]
[398156241,1765407042948,-500.0,0.00041095,60]
[398156242,1765407042957,-500.0,0.00041095,60]
[398156243,1765407042966,-500.0,0.00041095,60]
[398156244,1765407042975,-500.0,0.00041095,60]
[398156245,1765407042985,-500.0,0.00041095,60]
[398156246,1765407042994,-500.0,0.00041095,60]
[398156248,1765407043004,-500.0,0.00041095,60]
[398156250,1765407043013,-500.0,0.00041095,60]
[398156252,1765407043022,-500.0,0.00041095,60]
[398156253,1765407043032,-500.0,0.00041095,60]
[398156254,1765407043042,-500.0,0.00041095,60]
[398156255,1765407043051,-500.0,0.00041095,60]
[398156256,1765407043063,-500.0,0.00041095,60]
[398156257,1765407043074,-500.0,0.00041095,60]
[398156258,1765407043083,-500.0,0.00041095,60]
[398156259,1765407043093,-500.0,0.00041095,60]
[398156260,1765407043106,-96.09155074,0.00041095,60]
[398156261,1765407043134,-6182.87468006,0.00038586,2]
[398156262,1765407043147,-403.90844926,0.00041095,60]
[398156263,1765407043156,-500.0,0.00041095,60]
[398156264,1765407043166,-500.0,0.00041095,60]
[398156265,1765407043177,-178.23476043,0.00041095,60]
[398156266,1765407043189,-321.76523957,0.00041095,60]
[398156267,1765407043200,-500.0,0.00041095,60]
[398156268,1765407043210,-504.66350251,0.00041095,60]
[398156269,1765407043221,-500.0,0.00041095,60]
[398156270,1765407043231,-500.0,0.00041095,60]
[398156271,1765407043241,-500.0,0.00041095,60]
[398156272,1765407043251,-500.0,0.00041095,60]
[398156273,1765407043262,-500.0,0.00041095,60]
[398156274,1765407043272,-500.0,0.00041095,60]
[398156275,1765407043283,-500.0,0.00041095,60]
[398156276,1765407043291,-500.0,0.00041095,60]
[398156277,1765407043300,-500.0,0.00041095,60]
[398156278,1765407043309,-400.0,0.00041095,60]
[398156279,1765407043319,-500.0,0.00041095,60]
[398156280,1765407043329,-500.0,0.00041095,60]
[398156281,1765407043339,-500.0,0.00041095,60]
[398156282,1765407043348,-500.0,0.00041095,60]
[398156283,1765407043358,-500.0,0.00041095,60]
[398156284,1765407043367,-500.0,0.00041095,60]
[398156285,1765407043376,-500.0,0.00041095,60]
[398156286,1765407043386,-500.0,0.00041095,60]
[398156287,1765407043395,-507.08521715,0.00041095,60]
[398156288,1765407043404,-502.80495999,0.00041095,60]
[398156289,1765407043413,-500.0,0.00041095,60]
[398156290,1765407043422,-504.40332759,0.00041095,60]
[398156291,1765407043431,-500.0,0.00041095,60]
[398156292,1765407043440,-500.0,0.00041095,60]
[398156293,1765407043449,-500.0,0.00041095,60]
[398156294,1765407043459,-503.25008164,0.00041095,60]
[398156295,1765407043468,-500.0,0.00041095,60]
[398156296,1765407043477,-500.0,0.00041095,60]
[398156297,1765407043486,-500.0,0.00041095,60]
[398156298,1765407043495,-500.0,0.00041095,60]
[398156299,1765407043504,-500.0,0.00041095,60]
[398156300,1765407043513,-500.0,0.00041095,60]
[398156302,1765407043522,-500.0,0.00041095,60]
[398156304,1765407043531,-500.0,0.00041095,60]
[398156306,1765407043540,-500.0,0.00041095,60]
[398156308,1765407043551,-500.0,0.00041095,60]
[398156323,1765407043685,-301.7477041,0.00041095,60]
[398156325,1765407043695,-500.0,0.00041095,60]
[398156327,1765407043705,-500.0,0.00041095,60]
[398156329,1765407043717,-500.0,0.00041095,60]
[398156333,1765407043726,-500.0,0.00041095,60]
[398156336,1765407043736,-501.82077059,0.00041095,60]
[398156338,1765407043747,-500.0,0.00041095,60]
[398156340,1765407043756,-500.0,0.00041095,60]
[398156342,1765407043766,-500.0,0.00041095,60]
[398156344,1765407043781,-500.0,0.00041095,60]
[398156347,1765407043790,-500.0,0.00041095,60]
[398156350,1765407043800,-500.0,0.00041095,60]
[398156352,1765407043809,-500.0,0.00041095,60]
[398156354,1765407043819,-500.0,0.00041095,60]
[398156356,1765407043829,-500.0,0.00041095,60]
[398156358,1765407043838,-500.0,0.00041095,60]
[398156360,1765407043849,-500.0,0.00041095,60]
[398156363,1765407043865,-500.0,0.00041095,60]
[398156364,1765407043878,-500.0,0.00041095,60]
[398156366,1765407043888,-500.0,0.00041095,60]
[398156368,1765407043897,-500.0,0.00041095,60]
[398156370,1765407043906,-500.0,0.00041095,60]
[398156372,1765407043915,-500.0,0.00041095,60]
[398156374,1765407043924,-500.0,0.00041095,60]
[398156376,1765407043934,-500.0,0.00041095,60]
[398156378,1765407043943,-506.0551729,0.00041095,60]
[398156379,1765407043953,-500.0,0.00041095,60]
[398156380,1765407043963,-502.21362174,0.00041095,60]
[398156381,1765407043972,-500.0,0.00041095,60]
[398156382,1765407043981,-500.0,0.00041095,60]
[398156383,1765407043991,-500.0,0.00041095,60]
[398156384,1765407044000,-625.16458166,0.00041095,60]
[398156385,1765407044010,-500.0,0.00041095,60]
[398156386,1765407044020,-500.0,0.00041095,60]
[398156387,1765407044029,-500.0,0.00041095,60]
[398156388,1765407044039,-500.0,0.00041095,60]
[398156390,1765407044049,-500.0,0.00041095,60]
[398156392,1765407044058,-500.0,0.00041095,60]
[398156394,1765407044072,-500.0,0.00041095,60]
[398156395,1765407044082,-500.0,0.00041095,60]
[398156396,1765407044092,-500.0,0.00041095,60]
[398156397,1765407044102,-500.0,0.00041095,60]
[398156398,1765407044114,-500.0,0.00041095,60]
[398156399,1765407044123,-500.0,0.00041095,60]
[398156400,1765407044133,-253.78358382,0.00041095,60]
[398156401,1765407044143,-500.0,0.00041095,60]
[398156402,1765407044155,-500.0,0.00041095,60]
[398156403,1765407044165,-500.0,0.00041095,60]
[398156404,1765407044175,-500.0,0.00041095,60]
[398156405,1765407044185,-500.0,0.00041095,60]
[398156406,1765407044195,-506.34919629,0.00041095,60]
[398156407,1765407044204,-500.0,0.00041095,60]
[398156408,1765407044214,-500.0,0.00041095,60]
[398156409,1765407044223,-500.0,0.00041095,60]
[398156410,1765407044233,-500.0,0.00041095,60]
[398156411,1765407044242,-500.0,0.00041095,60]
[398156412,1765407044251,-590.74421717,0.00041095,60]
[398156413,1765407044260,-500.0,0.00041095,60]
[398156414,1765407044270,-500.0,0.00041095,60]
[398156415,1765407044280,-500.0,0.00041095,60]
[398156416,1765407044289,-500.0,0.00041095,60]
[398156417,1765407044298,-500.0,0.00041095,60]
[398156418,1765407044307,-500.0,0.00041095,60]
[398156419,1765407044316,-500.0,0.00041095,60]
[398156420,1765407044325,-500.0,0.00041095,60]
[398156421,1765407044335,-500.0,0.00041095,60]
[398156422,1765407044344,-500.0,0.00041095,60]
[398156423,1765407044354,-500.0,0.00041095,30]
[398156424,1765407044363,-500.0,0.00041095,60]
[398156425,1765407044372,-500.0,0.00041095,60]
[398156426,1765407044382,-500.0,0.00041095,30]
[398156427,1765407044391,-500.0,0.00041095,60]
[398156428,1765407044400,-500.0,0.00041095,60]
[398156429,1765407044410,-500.0,0.00041095,60]
[398156430,1765407044419,-500.36818795,0.00041095,60]
[398156431,1765407044428,-500.0,0.00041095,60]
[398156432,1765407044439,-500.0,0.00041095,60]
[398156433,1765407044448,-500.0,0.00041095,60]
[398156434,1765407044457,-500.0,0.00041095,60]
[398156435,1765407044466,-500.0,0.00041095,60]
[398156436,1765407044476,-500.0,0.00041095,60]
[398156437,1765407044485,-500.0,0.00041095,60]
[398156438,1765407044495,-500.0,0.00041095,60]
[398156439,1765407044505,-277.50564018,0.00041095,60]
[398156440,1765407044514,-500.0,0.00041095,60]
[398156441,1765407044523,-500.0,0.00041095,60]
[398156442,1765407044532,-500.0,0.00041095,60]
[398156443,1765407044541,-500.0,0.00041095,60]
[398156444,1765407044550,-500.0,0.00041095,60]
[398156445,1765407044559,-500.0,0.00041095,60]
[398156446,1765407044568,-500.0,0.00041095,60]
[398156447,1765407044577,-500.0,0.00041095,60]
[398156448,1765407044586,-293.313751,0.00041095,60]
[398156449,1765407044595,-500.0,0.00041095,60]
[398156450,1765407044603,-501.68386758,0.00041095,60]
[398156451,1765407044612,-644.24331964,0.00041095,60]
[398156452,1765407044621,-500.0,0.00041095,60]
[398156453,1765407044630,-507.77727703,0.00041095,60]
[398156454,1765407044640,-500.0,0.00041095,60]
[398156455,1765407044649,-500.0,0.00041095,60]
[398156456,1765407044658,-502.13306455,0.00041095,60]
[398156457,1765407044667,-500.0,0.00041095,60]
[398156458,1765407044677,-500.0,0.00041095,60]
[398156459,1765407044686,-486.73575,0.00041095,60]
[398156460,1765407044695,-500.0,0.00041095,60]
[398156461,1765407044704,-500.0,0.00041095,60]
[398156462,1765407044713,-500.0,0.00041095,60]
[398156463,1765407044722,-401.92075775,0.00041095,60]
[398156464,1765407044731,-403.72311031,0.00041095,60]
[398156465,1765407044740,-500.0,0.00041095,60]
[398156466,1765407044749,-503.8642069,0.00041095,60]
[398156467,1765407044759,-500.0,0.00041095,60]
[398156468,1765407044768,-500.0,0.00041095,60]
[398156469,1765407044778,-500.0,0.00041095,60]
[398156470,1765407044787,-500.0,0.00041095,60]
[398156471,1765407044798,-500.0,0.00041095,60]
[398156472,1765407044807,-500.0,0.00041095,60]
[398156473,1765407044816,-500.0,0.00041095,60]
[398156474,1765407044825,-500.0,0.00041095,60]
[398156475,1765407044834,-500.0,0.00041095,60]
[398156476,1765407044843,-500.0,0.00041095,60]
[398156477,1765407044852,-500.0,0.00041095,60]
[398156478,1765407044861,-506.03558117,0.00041095,60]
[398156479,1765407044871,-500.0,0.00041095,60]
[398156480,1765407044880,-500.0,0.00041095,60]
[398156481,1765407044890,-500.0,0.00041095,60]
[398156482,1765407044899,-51.60630922,0.00041095,60]
[398156483,1765407044925,-448.39369078,0.00041095,60]
[398156484,1765407044935,-500.0,0.00041095,60]
[398156485,1765407044945,-349.16630922,0.00041095,60]
[398156486,1765407044956,-150.83369078,0.00041095,60]
[398156487,1765407044967,-327.21546187,0.00041095,60]
[398156488,1765407044978,-172.78453813,0.00041095,60]
[398156489,1765407044988,-500.0,0.00041095,60]
[398156490,1765407044998,-500.0,0.00041095,60]
[398156491,1765407045007,-500.0,0.00041095,60]
[398156492,1765407045016,-500.0,0.00041095,60]
[398156493,1765407045025,-501.15850366,0.00041095,60]
[398156494,1765407045035,-500.43621134,0.00041095,60]
[398156495,1765407045044,-500.0,0.00041095,60]
[398156496,1765407045053,-500.0,0.00041095,60]
[398156497,1765407045066,-500.0,0.00041095,60]
[398156498,1765407045075,-500.0,0.00041095,60]
[398156499,1765407045084,-500.0,0.00041095,60]
[398156500,1765407045094,-500.0,0.00041095,60]
[398156501,1765407045106,-500.0,0.00041095,60]
[398156502,1765407045116,-500.0,0.00041095,60]
[398156503,1765407045127,-201.66,0.00041095,60]
[398156504,1765407045139,-500.0,0.00041095,60]
[398156505,1765407045148,-247.08301781,0.00041095,60]
[398156506,1765407045157,-500.0,0.00041095,7]
[398156507,1765407045167,-500.0,0.00041095,60]
[398156508,1765407045176,-500.0,0.00041095,60]
[398156509,1765407045186,-500.0,0.00041095,60]
[398156510,1765407045195,-500.0,0.00041095,60]
[398156511,1765407045204,-500.0,0.00041095,60]
[398156512,1765407045214,-319.77421454,0.00041095,60]
[398156513,1765407045399,-500.0,0.00036451,15]
[398156514,1765407045409,-500.0,0.00036451,15]
[398156515,1765407045418,-500.0,0.00036451,15]
[398156516,1765407045427,-500.0,0.00036451,15]
[398156517,1765407045436,-20.2,0.00036451,15]
[398156518,1765407045448,-479.8,0.00036451,15]
[398156519,1765407045457,-181.3367839,0.00036451,15]
[398156520,1765407045468,-318.6632161,0.00036451,15]
[398156521,1765407045477,-34.06478032,0.00036451,15]
[398156522,1765407045488,-465.93521968,0.00036451,15]
[398156523,1765407045497,-319.06478032,0.00036451,15]
[398156524,1765407045509,-180.93521968,0.00036451,15]
[398156525,1765407045518,-500.0,0.00036451,15]
[398156526,1765407045528,-500.0,0.00036451,15]
[398156527,1765407045537,-500.0,0.00036451,15]
[398156528,1765407045547,-500.0,0.00036451,15]
[398156529,1765407045556,-500.0,0.00036451,15]
[398156530,1765407045568,-500.0,0.00036451,15]
[398156531,1765407045577,-500.0,0.00036451,15]